Cogmind - Beta 16 @@@ ROGUE MODE // 2025.11.24 @ 19:15:07 Player: Maxfecteau Result: Destroyed by DAS Turret with DAS Cannon Performance ------------- Evolutions (0) 0 Regions Visited (3) 600 Robots Destroyed (26) 130 Value Destroyed (650) 650 Prototype IDs (2) 40 Alien Tech Used (0) 0 Bonus (0) 0 TOTAL SCORE: 1420 Bonus ------- None Cogmind --------- Core Integrity 0/250 Matter 292/300 Energy 98/100 System Corruption 3% Temperature Cool (0) Movement Core (400) Ox7 Location -10/Exiles Parts ------- > --- POWER (1) -------- (None) > --- PROPULSION (2) --- (None) > --- UTILITY (2) ------ Large Storage Unit Seismic Detector > --- WEAPON (2) ------- Light Cannon > --- INVENTORY (15) --- Ion Engine Light Nuclear Core Light Treads Light Treads Improved Heat Sink Small Storage Unit Medium Matter Pod (100) Visual Processing Unit Signal Interpreter Improved Terrain Scanner Seismic Detector ECM Suite Light Armor Plating Particle Gun Grenade Launcher Peak State ------------ > --- POWER ------------ Light Ion Engine > --- PROPULSION ------- Light Treads Light Treads > --- UTILITY ---------- Large Storage Unit Seismic Detector > --- WEAPON ----------- Medium Laser Light Cannon > --- INVENTORY -------- Light Nuclear Core Light Treads Light Treads Improved Heat Sink Small Storage Unit Medium Matter Pod Visual Processing Unit Signal Interpreter Improved Terrain Scanner Seismic Detector ECM Suite Light Armor Plating Particle Gun Grenade Launcher [Rating: 9] Favorites ----------- Power Light Ion Engine Engine Light Ion Engine Propulsion Light Treads Treads Light Treads Flight Unit Flight Unit Utility Seismic Detector Device Seismic Detector Storage Large Storage Unit Weapon Medium Laser Energy Gun Medium Laser Ballistic Gun Light Assault Rifle Ballistic Cannon Light Cannon Build | -11 -10 -10 -10 ------- Run | Yrd Mat Min Exi Slots Evolved . | . . . . Power . | . . . . Propulsion . | . . . . Utility . | . . . . Weapon . | . . . . Parts Attached 15 | 7 7 1 . Power 2 | 1 1 . . Engine 2 | 1 1 . . Core . | . . . . Reactor . | . . . . Propulsion 4 | 2 2 . . Treads 3 | 2 1 . . Leg . | . . . . Wheel . | . . . . Hover . | . . . . Flight 1 | . 1 . . Utility 5 | 2 3 . . Device 3 | 1 2 . . Storage 2 | 1 1 . . Processor . | . . . . Hackware . | . . . . Protection . | . . . . Artifact . | . . . . Weapon 4 | 2 1 1 . Energy Gun 2 | 1 1 . . Energy Cannon . | . . . . Ballistic Gun 1 | 1 . . . Ballistic Cannon 1 | . . 1 . Launcher . | . . . . Special Weapon . | . . . . Impact Weapon . | . . . . Slashing Weapon . | . . . . Piercing Weapon . | . . . . Special Melee Weapon . | . . . . Unidentified Prototypes . | . . . . Parts Lost 8 | . 2 2 4 Power 2 | . 1 . 1 Propulsion 2 | . . . 2 Utility 1 | . 1 . . Weapon 3 | . . 2 1 Highest Loss Streak 4 | . 1 2 4 To Critical Strikes . | . . . . Average Backups 10 | 1 8 14 15 Power . | . . 1 2 Propulsion 1 | . 1 2 2 Utility 6 | . 5 8 9 Weapon 1 | . 1 2 2 Tool/Special . | . . . . Unused Backups 14 | . . . 14 Power 3 | . . . 3 Propulsion 1 | . . . 1 Utility 8 | . . . 8 Weapon 2 | . . . 2 Tool/Special . | . . . . Average Slot Usage (%) 99 | . 99 99 100 Engine 13 | . 13 14 14 Treads 27 | . 27 28 28 Device 13 | . 13 14 14 Storage 14 | . 14 14 14 Energy Gun 13 | . 13 14 14 Ballistic Gun 7 | . 14 . . Ballistic Cannon 6 | . . 13 14 Peak Build Rating 9 | 7 8 9 9 Average Rating 8 | 5 7 8 8 On Entrance 6 | . 7 8 9 Avg Prop Armor Cover (%) . | . . . . Naked Turns . | . . . . Heaviest Build 29 | 12 28 29 29 Greatest Support 40 | 40 40 40 40 Greatest Overweight (x) 2 | . 2 . . Average Overweight (x) . | . . . . Largest Inventory Capacity 15 | 8 15 15 15 Average Capacity 12 | 7 11 15 15 Most Carried 15 | 3 14 15 15 Average Carried 10 | 1 8 14 14 Final Capacity 15 | 8 15 15 15 Final Carried 15 | 2 13 15 15 Class Distribution -------------------- 100% | Mutant Dominant Class ---------------- Mutant | -10/Materials Mutant | -10/Mines Mutant | -10/Exiles Resources | -11 -10 -10 -10 ----------- Run | Yrd Mat Min Exi Matter Collected 640 | 291 290 59 . Remotely . | . . . . Salvage Created 946 | 170 678 98 . Parts 49 | 13 30 6 . Haulers Intercepted 2 | . 2 . . Recyclers Shooed . | . . . . Parts Field Recycled . | . . . . Retrieved Matter . | . . . . Parts Self-Destructed . | . . . . Prevented . | . . . . Parts Restored . | . . . . Kills | -11 -10 -10 -10 ------- Run | Yrd Mat Min Exi Combat Hostiles Destroyed 14 | . 12 2 . Guns 13 | . 12 1 . Cannons 1 | . . 1 . Classes Destroyed 6 | 2 4 . . Tunneler 5 | 5 . . . Hauler 2 | . 2 . . Recycler 1 | 1 . . . Operator 1 | . 1 . . Watcher 3 | . 3 . . Grunt 14 | . 12 2 . Best Kill Streak 3 | 2 3 2 . Combat Bots Only 3 | . 3 2 . Max Kills in Single Turn 1 | 1 1 1 . Gunslinging . | . . . . Exploded . | . . . . Melee . | . . . . Uniques/NPCs Destroyed . | . . . . Combat | -11 -10 -10 -10 -------- Run | Yrd Mat Min Exi Hostile Shots Fired 90 | . 64 14 12 Missed 24 | . 15 7 2 Hits 66 | . 49 7 10 Projectile 66 | . 49 7 10 AOE 1 | . . . 1 Critical Strikes 1 | . 1 . . Damage Taken 1094 | . 650 93 351 Core 271 | . 138 . 133 Absorbed by Shields . | . . . . Regen/Repaired (Parts) 20 | . 20 . . Core Remaining (%) 100 | 100 . . . Volleys Fired 101 | 21 70 7 3 Largest 2 | 2 2 2 1 Hottest 80 | 70 70 80 30 Shots Fired 197 | 42 140 11 4 Gun 191 | 42 140 9 . Cannon 6 | . . 2 4 Launcher . | . . . . Special . | . . . . Kinetic 99 | 21 70 4 4 Thermal 98 | 21 70 7 . Explosive . | . . . . Electromagnetic . | . . . . Robot Hit Streak 16 | 7 16 4 2 Robot Miss Streak 4 | 4 3 2 3 Penetration Max . | . . . . Secondary Targets 1 | . 1 . . Max Gunslinging Chain 1 | . 1 . . Shots Hit Robots 128 | 23 96 7 2 Core Hits 52 | 9 38 5 . Critical Kills 1 | . 1 . . Critical Parts Destroyed . | . . . . Critical Strikes 5 | . 4 1 . Burn 4 | . 3 1 . Destroy 1 | . 1 . . Melee Attacks . | . . . . Impact . | . . . . Slashing . | . . . . Piercing . | . . . . Sneak Attacks . | . . . . Combat Hostiles . | . . . . Follow-up Attacks . | . . . . Damage Inflicted 1402 | 255 1012 97 38 Guns 1340 | 255 1010 75 . Cannons 60 | . . 22 38 Explosions . | . . . . Melee . | . . . . Ramming 2 | . 2 . . Kinetic 549 | 81 398 32 38 Thermal 851 | 174 612 65 . Explosive . | . . . . Electromagnetic . | . . . . Impact . | . . . . Slashing . | . . . . Piercing . | . . . . Highest Corruption 3 | . 2 2 3 Average Corruption 2 | . 2 2 2 Corruption Purged . | . . . . Corruption Blocked . | . . . . Effects 32 | . 9 18 5 Message Errors 7 | . 1 6 . Matter Fused 6 | . . 5 1 Heat Flow Errors 3 | . 2 1 . Energy Discharges 6 | . 2 3 1 Data Loss (minor) 4 | . 1 2 1 Data Loss (major) 2 | . 1 . 1 Misfires 3 | . 1 1 1 Alerts 1 | . 1 . . Overload Shots . | . . . . Overflow Damage 18 | . . . 18 Projectiles 18 | . . . 18 Explosions . | . . . . Melee . | . . . . Knockbacks 2 | . . . 2 Impact . | . . . . Kinetic 2 | . . . 2 Secondary . | . . . . Self-Inflicted Damage . | . . . . Shots . | . . . . Rammed 1 | . 1 . . Targets Rammed 1 | . 1 . . Kicked . | . . . . Crushed . | . . . . Highest Temperature 214 | 110 214 116 . Average Temperature 70 | 43 78 66 . Received Heat Transfer 429 | . 366 51 12 Siege Activations . | . . . . Martial Activations . | . . . . Shielding Activations . | . . . . Robots Disrupted . | . . . . Combat Hostiles . | . . . . Robots Corrupted . | . . . . Combat Hostiles . | . . . . Parts Fried . | . . . . Impact Corruptions . | . . . . Robots Melted . | . . . . Combat Hostiles . | . . . . Parts Melted 6 | 2 3 1 . Heat Transferred 2738 | 518 1961 259 . Parts Sabotaged . | . . . . Parts Stolen . | . . . . Parts Stripped . | . . . . Power Chain Reactions . | . . . . Alert | -11 -10 -10 -10 ------- Run | Yrd Mat Min Exi Maximum Alert Level . | . . . . Low Security (%) 100 | 100 100 100 . Level 1 . | . . . . Level 2 . | . . . . Level 3 . | . . . . Level 4 . | . . . . Level 5 . | . . . . High Security . | . . . . Max Security . | . . . . Peak Influence 67 | 10 67 40 . Initial . | . . . . Average 9 | 1 16 1 . Influence Increases 437 | 30 357 50 . Destroy 0b10 Robot/C 280 | . 240 40 . Destroy 0b10 Robot/NC 60 | 30 30 . . Destroy Leader 70 | . 60 10 . Successful Hack 27 | . 27 . . Influence Decreases 437 | 30 357 50 . Time Decay 404 | 30 334 40 . Lost Part 30 | . 20 10 . Purge Threat 3 | . 3 . . Squads Dispatched 2 | . 2 . . Investigation 1 | . 1 . . Extermination . | . . . . Reinforcement 1 | . 1 . . Assault . | . . . . Garrison . | . . . . Intercept . | . . . . Searches Triggered . | . . . . Construction Impeded . | . . . . Haulers Reinforced . | . . . . Active Scanning Responses . | . . . . Cargo Convoy Interrupts . | . . . . Stealth | -11 -10 -10 -10 --------- Run | Yrd Mat Min Exi Distress Signals . | . . . . Communications Jammed . | . . . . Distress Signals . | . . . . Times Spotted 22 | . 19 2 1 Peak Tracking Total 11 | . 3 2 11 Tactical Retreats . | . . . . Traps | -11 -10 -10 -10 ------- Run | Yrd Mat Min Exi Traps Triggered 4 | . 4 . . Indirectly . | . . . . Trap Hack Attempts . | . . . . Triggered . | . . . . Disarmed . | . . . . Reprogrammed . | . . . . Reused . | . . . . Traps Extracted . | . . . . Installed . | . . . . Triggered . | . . . . Machines | -11 -10 -10 -10 ---------- Run | Yrd Mat Min Exi Machines Disabled 2 | . . . 2 Max in Single Turn 1 | . . . 1 Machines Repaired . | . . . . Machines Dismantled . | . . . . Machines Sabotaged . | . . . . Overloaded Fab Kills . | . . . . Hacking | -11 -10 -10 -10 --------- Run | Yrd Mat Min Exi Machines Accessed 9 | . 9 . . Terminals 6 | . 6 . . Fabricators . | . . . . Repair Stations 1 | . 1 . . Recycling Units 2 | . 2 . . Scanalyzers . | . . . . Garrison Access . | . . . . Total Hacks 29 | . 29 . . Successful 12 | . 12 . . Failed 16 | . 16 . . Catastrophic 2 | . 2 . . Database Lockouts 1 | . 1 . . Manual 26 | . 26 . . Terminals 20 | . 20 . . Fabricators . | . . . . Repair Stations 2 | . 2 . . Recycling Units 7 | . 7 . . Scanalyzers . | . . . . Garrison Access . | . . . . Terminal Hacks 5 | . 5 . . Robot Analysis 2 | . 2 . . Prototype ID Bank 1 | . 1 . . Terminal Index 1 | . 1 . . Unreport Threat 1 | . 1 . . Fabricator Hacks . | . . . . Repair Station Hacks . | . . . . Recycling Unit Hacks 1 | . 1 . . Report Inventory 1 | . 1 . . Scanalyzer . | . . . . Garrison Access Hacks . | . . . . Unauthorized Hacks 6 | . 6 . . Terminals 1 | . 1 . . Operators 1 | . 1 . . Fabricators . | . . . . Repair Stations 2 | . 2 . . Mechanics 1 | . 1 . . Patch 1 | . 1 . . Recycling Units 3 | . 3 . . Monitor 1 | . 1 . . Reject 1 | . 1 . . Mask 1 | . 1 . . Scanalyzers . | . . . . Garrison Access . | . . . . Data Cores Recovered . | . . . . Used . | . . . . Hacking Detections 8 | . 8 . . Full Trace Events . | . . . . Feedback Events . | . . . . Feedback Blocked . | . . . . Robot Schematics Acquired . | . . . . Robots Built . | . . . . Authchips . | . . . . Time . | . . . . Total Robot Build Rating . | . . . . Part Schematics Acquired . | . . . . Parts Built . | . . . . Authchips . | . . . . Time . | . . . . Total Part Build Rating . | . . . . Part Studies Acquired . | . . . . Parts Repaired . | . . . . Time . | . . . . Parts Recycled . | . . . . Recycled Matter . | . . . . Retrieved Matter . | . . . . Retrieved Components . | . . . . Parts Scanalyzed . | . . . . Part Schematics Acquired . | . . . . Parts Damaged . | . . . . Bothacking | -11 -10 -10 -10 ------------ Run | Yrd Mat Min Exi Used RIF Installer . | . . . . Robots Hacked . | . . . . Non-combat . | . . . . Combat . | . . . . Robot Hacks Applied . | . . . . Relay Couplers Released . | . . . . Fabnet Peak Effective % . | . . . . Robots Rewired . | . . . . Allies Hacked . | . . . . Hacks Repelled . | . . . . Allies | -11 -10 -10 -10 -------- Run | Yrd Mat Min Exi Total Allies 4 | . . 4 . Largest Group 3 | . . 3 3 Highest-Rated Group 40 | . . 40 40 Highest-Rated Ally 31 | . . 31 16 Total Orders . | . . . . Ally Attacks 4 | . . . 4 Total Damage 32 | . . . 32 Kills 1 | . . . 1 Allies Corrupted . | . . . . Allies Melted . | . . . . Intel | -11 -10 -10 -10 ------- Run | Yrd Mat Min Exi Active Infowar (turns) 3174 | 25 1667 1237 245 Seismic 2710 | 25 1203 1237 245 ECM 464 | . 464 . . Robot Analysis Total 2 | . 2 . . Derelict Logs Recovered 1 | . . 1 . Drone Launches . | . . . . Drone Recoveries . | . . . . Exploration | -11 -10 -10 -10 ------------- Run | Yrd Mat Min Exi Turns Passed 3406 | 196 1728 1237 245 Spaces Moved 1857 | 82 910 716 149 Core 6 | 5 1 . . Treads 1851 | 77 909 716 149 Legs . | . . . . Wheels . | . . . . Hover . | . . . . Flight . | . . . . Fastest Speed 50 | 50 150 160 160 Average Speed 159 | 153 159 160 160 Slowest Speed 160 | 160 160 160 160 Overloaded Moves . | . . . . Propulsion Burnouts . | . . . . Robots Hopped . | . . . . Potential Cave-ins . | . . . . Cave-ins Triggered . | . . . . Exploration Rate (%) 60 | 6 95 98 42 Regions Visited 3 Branch Regions 2 Pre-discovered Areas 1 | . . 1 . Known Exits Taken . | . . . . Unknown Exits Taken 3 | 1 1 1 . Scrap Searched 1 | . . 1 . Spaces Dug . | . . . . Terrain Destroyed . | . . . . Melee . | . . . . Projectile . | . . . . AOE . | . . . . Terrain Rammed . | . . . . Walls Destroyed . | . . . . Machines Disabled . | . . . . Actions | -11 -10 -10 -10 --------- Run | Yrd Mat Min Exi Total 2120 | 112 1053 798 157 Wait 116 | . 46 70 . Move 1854 | 81 909 715 149 Hop . | . . . . Pick Up 21 | 3 12 4 2 Fast Attach 11 | 6 5 . . Attach 5 | 1 2 2 . Detach . | . . . . Swap 6 | . 6 . . Drop 4 | . 2 . 2 Fire 101 | 21 70 7 3 Melee . | . . . . Ram . | . . . . Kick . | . . . . Crush 1 | . 1 . . Escape Stasis . | . . . . Rewire 1 | . . . 1 Trap . | . . . . Miscellaneous . | . . . . Route ------- -11/Scrapyard -10/Materials (discovered 4 exits: [*Mat x2] / [*Min x2]) -10/Mines (discovered 3 exits: [*Mat x2] / [*Exi]) -10/Exiles (discovered 1 exit: [*Min]) History --------- Turn | Location | Event 15 | -11/Scrapyard | Discovered new exit (range 16) 197 | -11/Scrapyard | Entered Materials 312 | -10/Materials | Build established: Mutant 345 | -10/Materials | Central database locked down 370 | -10/Materials | Discovered new exit (range 15) 592 | -10/Materials | Discovered new exit (range 16) 865 | -10/Materials | Discovered new exit (range 16) 1094 | -10/Materials | Discovered new exit (range 13) 1475 | -10/Materials | Core integrity fell below 50% 1925 | -10/Materials | Entered Mines 1942 | -10/Mines | Met a Derelict bent on vengeance 2198 | -10/Mines | Received a Mining Laser from a helpful Derelict 2961 | -10/Mines | Discovered new exit (range 5) 3071 | -10/Mines | Discovered new exit (range 3) 3076 | -10/Mines | Learned location of Zion (-7) 3076 | -10/Mines | Assisted by bots powering up and referring to "LRC-V3" 3148 | -10/Mines | Deemed a non-threat by the Exiles lab entrance 3149 | -10/Mines | Discovered new exit (range 5) 3162 | -10/Mines | Entered Exiles 3162 | -10/Exiles | Accompanied by 3 allies 3194 | -10/Exiles | Discovered new exit (range 15) 3231 | -10/Exiles | Met 8R-AWN 3266 | -10/Exiles | Met EX-HEX 3369 | -10/Exiles | Met EX-DEC 3398 | -10/Exiles | Attacked by the Exiles 3407 | -10/Exiles | Core integrity fell below 20% 3407 | -10/Exiles | Destroyed by DAS Turret with DAS Cannon Last Messages --------------- they really get in the way, you know? 03397_ System corrupted: FCS attempts to trigger Lgt. Cannon. 03397_ System corrupted: Lgt. Cannon misfires. 03398_ EXILES: Hostile robot within lab perimeter. Defensive protocols time, folks! 03398_ CN-TPE(z) destroyed. 03400_ EX-DEC: "Let's see what this bad boy can do..." 03400_ EX-DEC deploys DAS Turret. 03400_ *among dab destroyed. 03400_ Machine disabled. 03401_ *among bro destroyed. 03402_ Chain reaction triggered in Lgt. Nuclear Core. 03402_ Med. Laser destroyed. 03402_ Lgt. Ion Engine destroyed. 03402_ Machine disabled. 03403_ *among bruh destroyed. 03405_ Destroyed EX Chip 1. 03405_ EX-DEC knocked back. 03405_ Lgt. Treads destroyed. 03407_ EX-DEC knocked back. Map ----- +----------------------------------------------------+ | ???????????????????????? "??????????? #### | | ?????????????????????? " ???????? | | ??????????????????? ????? | | ????????????????? ????? | | ????????????????? ????? | | ?????????????????? ???? | | ????????????????#" ????? | | ????????????????#""" ??????"" | | ????????????????#" ???????""" | | ????????????????"" ""??????????#""" | | ????????????????""" """#??????????##""" | | ???????????????""" """#????????????#"""" | | ???????????????""" ""#???????????##"" | | ???????????????"" / ########??####"""" | | ??????????????#""" =%! ##aa ####""" | | ??????????????#"" t *! """" | | ???????????????#"" | | ???????????????#"""" | | ????????????????# | | ????????????????#" " "" | | ????????????????#"" ""## ##""" " | | ????????????????#""% % ""#### ######"" | | ????????????????#" = """"##??# #????### | | ????????????????#""" c =%% """#??## ####???? | | ????????????????## [ ""##??#! "!#???? | | ?????????????????#"" =%@ % """##???#" !#???? | | ?????????????????##""" % ##????#" "#???? | | ??????????????????##"" %% ##?????#!!""!"#???? | | ???????????????????### #??????########???? | | ?????????????????????##### ##?????????????????? | | ?????????????????????????## #??????????????????? | | ??????????????????????????? #??????????????????? | | ??????????????????????????? #??????????????????? | | ??????????????????????????? #??????????????????? | | ??????????????????????????? #??????????????????? | | ??????????????????????????? #??????????????????? | | ??????????????????????????? #??????????????????? | | ??????????????????????????? #??????????????????? | | ???????????????????????????? #??????????????????? | | ???????????????????????????? #??????????????????? | | ???????????????????????????? #??????????????????? | | ???????????????????????????? "??????????????????? | | ?????????????????????????????????????????????????? | | ?????????????????????????????????????????????????? | | ?????????????????????????????????????????????????? | | ?????????????????????????????????????????????????? | | ?????????????????????????????????????????????????? | | ?????????????????????????????????????????????????? | | ?????????????????????????????????????????????????? | | ?????????????????????????????????????????????????? | +----------------------------------------------------+ Best States ------------- Heat Dissipation 25 Energy Generation 10 Energy Capacity 125 Matter Stores 300 Matter Capacity 300 Sight Range 16 Terrain Scan Density 10 ECM Strength 1 Evasion (%) 40 Recoil Reduction 2 Item Schematics ----------------- None Robot Schematics ------------------ None Fabricated ------------ Nothing Repaired ---------- Nothing Studied --------- None Alien Tech Used ----------------- None Achievements -------------- Myspace Tune-up Challenges ------------ None Game ------ Seed ArmorCoordinationNukerbomber Manual? 0 Play Time 00:30:19 Cumulative 37.5 hours Start 2025.11.24 @ 18:41:11 End 2025.11.24 @ 19:15:07 Sessions 1 Manual Loads 0 Difficulty Rogue Special Mode None Game No. 28 Rogue 28 Adventurer 0 Explorer 0 Win Type - Total 1 Types 1/0/0/0/0/0/0/0/0/0 Lore% 33 Gallery% 32 Achievement% 29 Wizard Run 0 Options --------- Layout 0 ASCII 0 Keyboard 1 Movement Arrows Keybinds 0 Fullscreen 2 Font 18/SmallcapsGlow Map View 76x50 Zoom Use 0% Tactical HUD 1 Map Filters NONE Filters NONE Steam 1 RUN: 85c36588-47a1-44be-8b31-88df55f14347